fUST/lending_fUST_20260527
["ID","MTS","AMOUNT","RATE_DAILY","PERIOD"]
[423139750,1779887440000,-500.0,8.219e-05,2]
[423139753,1779887440000,-500.0,8.219e-05,2]
[423139744,1779887440000,-500.66567738,8.219e-05,2]
[423139742,1779887440000,-500.32666346,8.219e-05,2]
[423139755,1779887440000,-500.0,8.219e-05,2]
[423139757,1779887440000,-500.47720716,8.219e-05,2]
[423139760,1779887440000,-500.32655012,8.219e-05,2]
[423139774,1779887440000,-500.0,8.219e-05,2]
[423139776,1779887440000,-500.0,8.219e-05,2]
[423139778,1779887440000,-500.0,8.219e-05,2]
[423139764,1779887440000,-363.37716353,8.219e-05,2]
[423139780,1779887440000,-500.13541012,8.219e-05,2]
[423139761,1779887440000,-500.0,8.219e-05,2]
[423139782,1779887440000,-500.58082918,8.219e-05,2]
[423139786,1779887440000,-500.35615397,8.219e-05,2]
[423139766,1779887440000,-500.0,8.219e-05,2]
[423139767,1779887440000,-500.0,8.219e-05,2]
[423139772,1779887440000,-500.53659759,8.219e-05,2]
[423139784,1779887440000,-500.34177998,8.219e-05,2]
[423139770,1779887440000,-500.27155922,8.219e-05,2]
[423139788,1779887440000,-500.33609839,8.219e-05,2]
[423139800,1779887440000,-500.38402391,8.219e-05,2]
[423139789,1779887440000,-500.0,8.219e-05,2]
[423139802,1779887440000,-500.0,8.219e-05,2]
[423139804,1779887440000,-500.0,8.219e-05,2]
[423139793,1779887440000,-502.58136293,8.219e-05,2]
[423139797,1779887440000,-500.0,8.219e-05,2]
[423139871,1779887440000,-142.72078469,8.219e-05,2]
[423139888,1779887440000,-500.0,8.219e-05,2]
[423139875,1779887440000,-96.23086139,8.219e-05,2]
[423139930,1779887440000,-500.0,8.219e-05,2]
[423139945,1779887440000,-500.80550408,8.219e-05,2]
[423139949,1779887440000,-529.82239356,8.219e-05,2]
[423139953,1779887440000,-555.85,8.219e-05,2]
[423139962,1779887440000,-500.40219254,8.219e-05,2]
[423139965,1779887440000,-500.0,8.219e-05,2]
[423139972,1779887440000,-500.0,8.219e-05,2]
[423139970,1779887440000,-500.0,8.219e-05,2]
[423139974,1779887440000,-500.75011923,8.219e-05,2]
[423139957,1779887440000,-500.0,8.219e-05,2]
[423139960,1779887440000,-1000.0,8.219e-05,2]
[423139955,1779887440000,-500.64452405,8.219e-05,2]
[423139967,1779887440000,-500.0,8.219e-05,2]
[423139951,1779887440000,-500.0,8.219e-05,2]
[423139924,1779887440000,-500.0,8.219e-05,2]
[423139959,1779887440000,-500.0,8.219e-05,2]
[423139978,1779887440000,-534.44284069,8.219e-05,2]
[423139999,1779887440000,-500.0,8.219e-05,2]
[423139992,1779887440000,-407.74547894,8.219e-05,2]
[423139984,1779887440000,-500.0,8.219e-05,2]
[423139873,1779887440000,-261.04835392,8.219e-05,2]
[423139988,1779887440000,-500.0,8.219e-05,2]
[423139976,1779887440000,-500.0,8.219e-05,2]
[423139990,1779887440000,-500.0,8.219e-05,2]
[423140001,1779887440000,-500.0,8.219e-05,2]
[423139997,1779887440000,-500.0,8.219e-05,2]
[423139995,1779887440000,-32.57718671,8.219e-05,2]
[423139982,1779887440000,-500.0,8.219e-05,2]
[423139987,1779887440000,-508.18888521,8.219e-05,2]
[423140002,1779887440000,-500.23264018,8.219e-05,2]
[423139969,1779887440000,-501.03988881,8.219e-05,2]
[423139932,1779887440000,-501.74009081,8.219e-05,2]
[423139980,1779887440000,-500.30218787,8.219e-05,2]
[423139929,1779887440000,-500.0,8.219e-05,2]
[423139934,1779887440000,-500.0,8.219e-05,2]
[423139877,1779887440000,-500.0,8.219e-05,2]
[423139879,1779887440000,-500.0,8.219e-05,2]
[423139884,1779887440000,-500.0,8.219e-05,2]
[423139887,1779887440000,-504.50444369,8.219e-05,2]
[423139881,1779887440000,-500.0,8.219e-05,2]
[423139890,1779887440000,-500.0,8.219e-05,2]
[423139892,1779887440000,-500.54805937,8.219e-05,2]
[423139894,1779887440000,-500.0,8.219e-05,2]
[423139896,1779887440000,-500.0,8.219e-05,2]
[423139908,1779887440000,-501.42291695,8.219e-05,2]
[423139910,1779887440000,-418.48462813,8.219e-05,2]
[423139898,1779887440000,-500.0,8.219e-05,2]
[423139902,1779887440000,-500.0,8.219e-05,2]
[423139882,1779887440000,-605.41369361,8.219e-05,2]
[423139912,1779887440000,-500.0,8.219e-05,2]
[423139947,1779887440000,-500.0,8.219e-05,2]
[423139916,1779887440000,-500.0,8.219e-05,2]
[423139926,1779887440000,-500.0,8.219e-05,2]
[423139941,1779887440000,-500.0,8.219e-05,2]
[423139939,1779887440000,-500.0,8.219e-05,2]
[423139937,1779887440000,-500.0,8.219e-05,2]
[423139943,1779887440000,-500.49348083,8.219e-05,2]
[423139923,1779887440000,-500.0,8.219e-05,2]
[423139914,1779887440000,-500.0,8.219e-05,2]
[423139919,1779887440000,-402.31104959,8.219e-05,2]
[423139906,1779887440000,-500.0,8.219e-05,2]
[423139904,1779887440000,-500.45077908,8.219e-05,2]
[423139920,1779887440000,-502.36032478,8.219e-05,2]
[423139900,1779887440000,-500.0,8.219e-05,2]
[423140075,1779887441000,-122.14456816,8.219e-05,2]
[423140082,1779887441000,-500.37325397,8.219e-05,2]
[423140079,1779887441000,-500.0,8.219e-05,2]
[423140090,1779887441000,-500.0,8.219e-05,2]
[423140071,1779887441000,-500.0,8.219e-05,2]
[423140092,1779887441000,-500.0,8.219e-05,2]
[423140067,1779887441000,-500.26445615,8.219e-05,2]
[423140065,1779887441000,-364.58219488,8.219e-05,2]
[423140077,1779887441000,-500.42768074,8.219e-05,2]
[423140081,1779887441000,-500.53865918,8.219e-05,2]
[423140096,1779887441000,-500.0,8.219e-05,2]
[423140094,1779887441000,-500.0,8.219e-05,2]
[423140088,1779887441000,-500.53867313,8.219e-05,2]
[423140084,1779887441000,-500.0,8.219e-05,2]
[423140072,1779887441000,-377.85543184,8.219e-05,2]
[423140107,1779887441000,-500.0,8.219e-05,2]
[423140109,1779887441000,-500.0,8.219e-05,2]
[423140111,1779887441000,-500.0,8.219e-05,2]
[423140069,1779887441000,-500.38539459,8.219e-05,2]
[423140098,1779887441000,-500.57495586,8.219e-05,2]
[423140086,1779887441000,-500.0,8.219e-05,2]
[423140053,1779887441000,-135.41780512,8.219e-05,2]
[423140006,1779887441000,-500.0,8.219e-05,2]
[423140040,1779887441000,-500.0,8.219e-05,2]
[423140113,1779887441000,-500.0,8.219e-05,2]
[423140013,1779887441000,-500.0,8.219e-05,2]
[423140014,1779887441000,-500.0,8.219e-05,2]
[423140017,1779887441000,-500.0,8.219e-05,2]
[423140004,1779887441000,-500.0,8.219e-05,2]
[423140010,1779887441000,-500.0,8.219e-05,2]
[423140020,1779887441000,-500.46437447,8.219e-05,2]
[423140008,1779887441000,-500.0,8.219e-05,2]
[423140019,1779887441000,-500.0,8.219e-05,2]
[423140048,1779887441000,-528.18,8.219e-05,2]
[423140025,1779887441000,-500.0,8.219e-05,2]
[423140029,1779887441000,-500.54962599,8.219e-05,2]
[423140030,1779887441000,-500.0,8.219e-05,2]
[423140042,1779887441000,-500.0,8.219e-05,2]
[423140039,1779887441000,-500.0,8.219e-05,2]
[423140044,1779887441000,-500.0,8.219e-05,2]
[423140036,1779887441000,-500.47794135,8.219e-05,2]
[423140035,1779887441000,-500.0,8.219e-05,2]
[423140046,1779887441000,-500.0,8.219e-05,2]
[423140033,1779887441000,-500.40497197,8.219e-05,2]
[423140027,1779887441000,-616.81,8.219e-05,2]
[423140102,1779887441000,-500.0,8.219e-05,2]
[423140023,1779887441000,-501.06079561,8.219e-05,2]
[423140119,1779887441000,-500.0,8.219e-05,2]
[423140149,1779887441000,-577.91,8.219e-05,2]
[423140162,1779887441000,-500.0,8.493e-05,2]
[423140164,1779887441000,-322.57,8.493e-05,2]
[423140166,1779887441000,-500.0,8.493e-05,2]
[423140168,1779887441000,-500.0,8.493e-05,2]
[423140170,1779887441000,-489.81,8.493e-05,2]
[423140175,1779887441000,-528.18,8.493e-05,2]
[423140177,1779887441000,-208.91614066,8.493e-05,2]
[423140210,1779887441000,-1479.39,8.493e-05,2]
[423140194,1779887441000,-243.63107208,8.493e-05,2]
[423140193,1779887441000,-291.08385934,8.493e-05,2]
[423140206,1779887441000,-500.0,8.493e-05,2]
[423140204,1779887441000,-256.36892792,8.493e-05,2]
[423140208,1779887441000,-500.0,8.493e-05,2]
[423140221,1779887441000,-156.24059314,8.583e-05,2]
[423140213,1779887441000,-500.0,8.493e-05,2]
[423140211,1779887441000,-500.0,8.493e-05,2]
[423140217,1779887441000,-500.0,8.493e-05,2]
[423140215,1779887441000,-500.0,8.493e-05,2]
[423140219,1779887441000,-500.0,8.493e-05,2]
[423140103,1779887441000,-500.39662144,8.219e-05,2]
[423140160,1779887441000,-500.0,8.493e-05,2]
[423140150,1779887441000,-500.0,8.219e-05,2]
[423140172,1779887441000,-500.0,8.493e-05,2]
[423140154,1779887441000,-500.0,8.309e-05,2]
[423140099,1779887441000,-500.0,8.219e-05,2]
[423140117,1779887441000,-500.55329386,8.219e-05,2]
[423140115,1779887441000,-500.4864851,8.219e-05,2]
[423140105,1779887441000,-500.0,8.219e-05,2]
[423140152,1779887441000,-500.0,8.219e-05,2]
[423140121,1779887441000,-500.0,8.219e-05,2]
[423140125,1779887441000,-500.0,8.219e-05,2]
[423140126,1779887441000,-500.70052025,8.219e-05,2]
[423140128,1779887441000,-500.0,8.219e-05,2]
[423140132,1779887441000,-500.0,8.219e-05,2]
[423140136,1779887441000,-500.0,8.219e-05,2]
[423140123,1779887441000,-500.59604064,8.219e-05,2]
[423140139,1779887441000,-500.0,8.219e-05,2]
[423140130,1779887441000,-1479.39,8.219e-05,2]
[423140140,1779887441000,-500.0,8.219e-05,2]
[423140134,1779887441000,-500.0,8.219e-05,2]
[423140141,1779887441000,-500.0,8.219e-05,2]
[423140145,1779887441000,-555.75,8.219e-05,2]
[423140156,1779887441000,-637.15,8.493e-05,2]
[423140147,1779887441000,-500.0,8.219e-05,2]
[423140158,1779887441000,-292.2066766,8.493e-05,2]
[423140143,1779887441000,-290.4406149,8.219e-05,2]
[423140242,1779887442000,-350.90446704,8.767e-05,2]
[423140246,1779887442000,-500.0,8.767e-05,2]
[423140257,1779887442000,-500.0,8.767e-05,2]
[423140252,1779887442000,-500.0,8.767e-05,2]
[423140244,1779887442000,-500.0,8.767e-05,2]
[423140250,1779887442000,-500.0,8.767e-05,2]
[423140234,1779887442000,-149.09553296,8.767e-05,2]
[423140259,1779887442000,-1479.39,8.767e-05,2]
[423140231,1779887442000,-279.66719737,8.767e-05,2]
[423140230,1779887442000,-500.0,8.767e-05,2]
[423140225,1779887442000,-500.0,8.767e-05,2]
[423140223,1779887442000,-637.15,8.767e-05,2]
[423140255,1779887442000,-500.0,8.767e-05,2]
[423140261,1779887442000,-500.0,8.767e-05,2]
[423140248,1779887442000,-528.18,8.767e-05,2]
[423140292,1779887442000,-331.36416462,9.041e-05,2]
[423140269,1779887442000,-152.0,8.912e-05,7]
[423140263,1779887442000,-500.0,8.767e-05,2]
[423140294,1779887442000,-500.0,9.041e-05,2]
[423140296,1779887442000,-888.07054141,9.041e-05,2]
[423140267,1779887442000,-500.0,8.767e-05,2]
[423140288,1779887442000,-500.0,9.041e-05,2]
[423140265,1779887442000,-500.0,8.767e-05,2]
[423140275,1779887442000,-500.0,9.041e-05,2]
[423140284,1779887442000,-528.18,9.041e-05,2]
[423140271,1779887442000,-637.15,9.041e-05,2]
[423140282,1779887442000,-500.0,9.041e-05,2]
[423140280,1779887442000,-500.0,9.041e-05,2]
[423140286,1779887442000,-500.0,9.041e-05,2]
[423140273,1779887442000,-500.0,9.041e-05,2]
[423140278,1779887442000,-232.97633494,9.041e-05,2]
[423140290,1779887442000,-168.63583538,9.041e-05,2]
[423140499,1779887444000,-500.0,9.315e-05,2]
[423140507,1779887444000,-1479.39,9.315e-05,2]
[423140498,1779887444000,-500.0,9.315e-05,2]
[423140496,1779887444000,-388.9660346,9.156e-05,2]
[423140502,1779887444000,-528.18,9.315e-05,2]
[423140495,1779887444000,-160.0,9.119e-05,2]
[423140506,1779887444000,-600.94593283,9.315e-05,2]
[423140497,1779887444000,-637.15,9.315e-05,2]
[423140501,1779887444000,-500.0,9.315e-05,2]
[423140490,1779887444000,-136.35479907,9.041e-05,2]
[423140505,1779887444000,-500.0,9.315e-05,2]
[423140504,1779887444000,-447.43837984,9.315e-05,2]
[423140493,1779887444000,-262.0360389,9.041e-05,2]
[423140492,1779887444000,-500.0,9.041e-05,2]
[423140494,1779887444000,-500.0,9.041e-05,2]
[423140491,1779887444000,-500.0,9.041e-05,2]
[423140489,1779887444000,-454.96465952,9.041e-05,2]
[423140500,1779887444000,-286.6,9.315e-05,2]
[423140503,1779887444000,-500.0,9.315e-05,2]
[423140519,1779887444000,-479.63944038,9.589e-05,2]
[423140527,1779887444000,-456.7807192,9.726e-05,2]
[423140518,1779887444000,-528.18,9.589e-05,2]
[423140525,1779887444000,-1.9766033,9.726e-05,2]
[423140520,1779887444000,-500.0,9.589e-05,2]
[423140528,1779887444000,-151.0,9.726e-05,2]
[423140523,1779887444000,-500.0,9.589e-05,2]
[423140530,1779887444000,-106.55499894,9.863e-05,2]
[423140522,1779887444000,-502.3735967,9.589e-05,2]
[423140529,1779887444000,-637.15,9.863e-05,2]
[423140524,1779887444000,-500.0,9.589e-05,2]
[423140526,1779887444000,-149.0233967,9.726e-05,2]
[423140521,1779887444000,-977.0164033,9.589e-05,2]
[423140510,1779887444000,-500.0,9.315e-05,2]
[423140512,1779887444000,-2204.0,9.368e-05,2]
[423140514,1779887444000,-637.15,9.589e-05,2]
[423140511,1779887444000,-648.0,9.368e-05,2]
[423140516,1779887444000,-500.0,9.589e-05,2]
[423140509,1779887444000,-500.0,9.315e-05,2]
[423140508,1779887444000,-627.08463,9.315e-05,2]
[423140513,1779887444000,-443.0,9.368e-05,2]
[423140517,1779887444000,-500.0,9.589e-05,2]
[423140515,1779887444000,-500.0,9.589e-05,2]
[423140549,1779887447000,-500.0,9.863e-05,2]
[423140542,1779887447000,-393.44500106,9.863e-05,2]
[423140551,1779887447000,-5485.52053099,0.0001,2]
[423140548,1779887447000,-500.0,9.863e-05,2]
[423140546,1779887447000,-500.0,9.863e-05,2]
[423140543,1779887447000,-500.0,9.863e-05,2]
[423140550,1779887447000,-3148.26782143,0.0001,2]
[423140553,1779887447000,-10196.6089364,0.0001,2]
[423140547,1779887447000,-1479.39,9.863e-05,2]
[423140552,1779887447000,-5198.5866164,0.0001,2]
[423140545,1779887447000,-528.18,9.863e-05,2]
[423140544,1779887447000,-500.0,9.863e-05,2]
[423140559,1779887484000,152.0,0.00014674,30]
[423140576,1779887921000,165.754001,3.452e-05,2]
[423140577,1779887921000,165.754001,3.766e-05,2]
[423140578,1779887921000,165.754001,4.08e-05,2]
[423140580,1779887922000,165.754001,4.707e-05,2]
[423140579,1779887922000,165.754001,4.393e-05,2]
[423140583,1779888037000,202.0,5.005e-05,2]
[423140584,1779888045000,2305.62171283,5.005e-05,2]
[423140586,1779888127000,10000.0,0.00015,30]
[423140587,1779888133000,10000.0,0.00015,30]
[423140588,1779888138000,10000.0,0.00015,30]
[423140589,1779888150000,3429.06,0.00015,30]
[423140590,1779888179000,10000.0,0.00015,30]
[423140591,1779888186000,10000.0,0.00015,30]
[423140592,1779888192000,10000.0,0.00015,30]
[423140593,1779888206000,3866.2,0.00015,30]
[423140633,1779888466000,-151.0,5.021e-05,2]
[423140671,1779888632000,-1047.9,8.492e-05,2]
[423140670,1779888632000,-500.0,8.492e-05,2]
[423140669,1779888632000,-500.0,8.492e-05,2]
[423140660,1779888632000,-250.24208455,6.262e-05,2]
[423140668,1779888632000,-500.0,8.492e-05,2]
[423140663,1779888632000,-165.754001,6.59e-05,2]
[423140665,1779888632000,-165.754001,6.904e-05,2]
[423140661,1779888632000,-165.754001,6.276e-05,2]
[423140667,1779888632000,-1115.0582107,8.456e-05,2]
[423140662,1779888632000,-151.0,6.542e-05,2]
[423140659,1779888632000,-165.754001,5.962e-05,2]
[423140658,1779888632000,-165.754001,5.649e-05,2]
[423140656,1779888632000,-265.75532305,5.056e-05,2]
[423140675,1779888632000,-1115.0582107,8.76e-05,2]
[423140666,1779888632000,-313.5912812,7.056e-05,2]
[423140657,1779888632000,-165.754001,5.335e-05,2]
[423140655,1779888632000,-14.754001,5.021e-05,2]
[423140664,1779888632000,-167.018395,6.841e-05,2]
[423140673,1779888632000,-500.0,8.492e-05,2]
[423140693,1779888632000,-545.73860696,8.985e-05,2]
[423140672,1779888632000,-500.0,8.492e-05,2]
[423140674,1779888632000,-500.0,8.492e-05,2]
[423140694,1779888632000,-500.0,9.038e-05,2]
[423140692,1779888632000,-880.11671611,8.985e-05,2]
[423140689,1779888632000,-152.0,8.91e-05,7]
[423140691,1779888632000,-8.22533848,8.91e-05,7]
[423140686,1779888632000,-500.0,8.766e-05,2]
[423140687,1779888632000,-500.0,8.766e-05,2]
[423140688,1779888632000,-326.0859053,8.904e-05,2]
[423140683,1779888632000,-500.0,8.766e-05,2]
[423140690,1779888632000,-143.77466152,8.91e-05,7]
[423140685,1779888632000,-500.0,8.766e-05,2]
[423140680,1779888632000,-175.99834707,8.764e-05,2]
[423140679,1779888632000,-500.0,8.764e-05,2]
[423140682,1779888632000,-500.0,8.766e-05,2]
[423140684,1779888632000,-1047.9,8.766e-05,2]
[423140678,1779888632000,-560.42640086,8.763e-05,2]
[423140677,1779888632000,-203.30843043,8.763e-05,2]
[423140676,1779888632000,-500.0,8.763e-05,2]
[423140681,1779888632000,-500.0,8.766e-05,2]
[423140701,1779888633000,-500.0,9.04e-05,2]
[423140703,1779888633000,-361.42723935,9.056e-05,2]
[423140702,1779888633000,-500.0,9.04e-05,2]
[423140699,1779888633000,-1047.9,9.04e-05,2]
[423140695,1779888633000,-500.0,9.039e-05,2]
[423140697,1779888633000,-500.0,9.04e-05,2]
[423140696,1779888633000,-500.0,9.04e-05,2]
[423140709,1779888633000,-500.0,9.314e-05,2]
[423140698,1779888633000,-500.0,9.04e-05,2]
[423140704,1779888633000,-160.0,9.083e-05,2]
[423140700,1779888633000,-500.0,9.04e-05,2]
[423140707,1779888633000,-500.0,9.313e-05,2]
[423140708,1779888633000,-500.0,9.314e-05,2]
[423140712,1779888633000,-500.0,9.314e-05,2]
[423140705,1779888633000,-766.98895499,9.084e-05,2]
[423140710,1779888633000,-500.0,9.314e-05,2]
[423140711,1779888633000,-1047.9,9.314e-05,2]
[423140706,1779888633000,-500.0,9.312e-05,2]
[423140714,1779888633000,-500.0,9.314e-05,2]
[423140713,1779888633000,-500.0,9.314e-05,2]
[423140717,1779888633000,-2127.79411132,9.386e-05,2]
[423140715,1779888633000,-80288.34014984,9.386e-05,2]
[423140716,1779888633000,-304.0,9.386e-05,2]
[423140736,1779888639000,-265.75532305,5.039e-05,2]
[423140737,1779888639000,-177.09467695,7.039e-05,2]
[423140741,1779888641000,-136.49660425,7.039e-05,2]
[423140742,1779888641000,-290.6024141,8.763e-05,2]
[423140744,1779888641000,-424.96257321,8.763e-05,2]
[423140745,1779888641000,-267.21806668,8.763e-05,2]
[423140743,1779888641000,-500.0,8.763e-05,2]
[423140765,1779888647000,-500.0,8.763e-05,2]
[423140769,1779888647000,-500.0,8.763e-05,2]
[423140772,1779888647000,-500.0,8.763e-05,2]
[423140781,1779888647000,-500.0,8.763e-05,2]
[423140780,1779888647000,-500.0,8.763e-05,2]
[423140768,1779888647000,-500.0,8.763e-05,2]
[423140779,1779888647000,-500.0,8.763e-05,2]
[423140767,1779888647000,-500.0,8.763e-05,2]
[423140766,1779888647000,-500.0,8.763e-05,2]
[423140756,1779888647000,-500.0,8.763e-05,2]
[423140757,1779888647000,-500.0,8.763e-05,2]
[423140762,1779888647000,-500.0,8.763e-05,2]
[423140755,1779888647000,-500.0,8.763e-05,2]
[423140760,1779888647000,-500.0,8.763e-05,2]
[423140758,1779888647000,-500.0,8.763e-05,2]
[423140763,1779888647000,-500.0,8.763e-05,2]
[423140764,1779888647000,-500.0,8.763e-05,2]
[423140759,1779888647000,-500.0,8.763e-05,2]
[423140754,1779888647000,-410.64307977,8.763e-05,2]
[423140753,1779888647000,-232.78193332,8.763e-05,2]
[423140776,1779888647000,-500.0,8.763e-05,2]
[423140761,1779888647000,-500.0,8.763e-05,2]
[423140778,1779888647000,-500.0,8.763e-05,2]
[423140774,1779888647000,-500.0,8.763e-05,2]
[423140777,1779888647000,-500.0,8.763e-05,2]
[423140773,1779888647000,-500.0,8.763e-05,2]
[423140800,1779888647000,-500.0,8.763e-05,2]
[423140798,1779888647000,-500.0,8.763e-05,2]
[423140799,1779888647000,-500.0,8.763e-05,2]
[423140795,1779888647000,-500.0,8.763e-05,2]
[423140797,1779888647000,-500.0,8.763e-05,2]
[423140796,1779888647000,-287.9740613,8.763e-05,2]
[423140794,1779888647000,-500.0,8.763e-05,2]
[423140793,1779888647000,-500.0,8.763e-05,2]
[423140783,1779888647000,-500.0,8.763e-05,2]
[423140789,1779888647000,-500.0,8.763e-05,2]
[423140790,1779888647000,-500.0,8.763e-05,2]
[423140771,1779888647000,-500.0,8.763e-05,2]
[423140770,1779888647000,-500.0,8.763e-05,2]
[423140788,1779888647000,-500.0,8.763e-05,2]
[423140784,1779888647000,-500.0,8.763e-05,2]
[423140786,1779888647000,-500.0,8.763e-05,2]
[423140782,1779888647000,-500.0,8.763e-05,2]
[423140785,1779888647000,-569.01278795,8.763e-05,2]
[423140791,1779888647000,-500.0,8.763e-05,2]
[423140792,1779888647000,-500.0,8.763e-05,2]
[423140787,1779888647000,-500.0,8.763e-05,2]
[423140805,1779888648000,-500.0,8.763e-05,2]
[423140806,1779888648000,-500.0,8.763e-05,2]
[423140801,1779888648000,-500.0,8.763e-05,2]
[423140802,1779888648000,-500.0,8.763e-05,2]
[423140803,1779888648000,-500.0,8.763e-05,2]
[423140808,1779888648000,-500.0,8.763e-05,2]
[423140804,1779888648000,-500.0,8.763e-05,2]
[423140809,1779888648000,-500.0,8.763e-05,2]
[423140810,1779888648000,-500.0,8.763e-05,2]
[423140812,1779888648000,-750.5969823,9.386e-05,2]
[423140811,1779888648000,-361.42723935,9.039e-05,2]
[423140814,1779888648000,-18601.55817069,9.386e-05,2]
[423140813,1779888648000,-1881.25,9.386e-05,2]
[423140807,1779888648000,-500.0,8.763e-05,2]
[423140828,1779888692000,-3148.26782143,8.407e-05,2]
[423141412,1779889449000,300.0,0.000178,120]
[423141511,1779889832000,-500.0,6.067e-05,2]
[423141513,1779889832000,-500.0,6.067e-05,2]
[423141523,1779889832000,-500.0,6.067e-05,2]
[423141536,1779889832000,-300.0,6.932e-05,2]
[423141521,1779889832000,-500.0,6.067e-05,2]
[423141529,1779889832000,-5156.0,6.317e-05,2]
[423141482,1779889832000,-300.0,6.006e-05,2]
[423141501,1779889832000,-500.0,6.067e-05,2]
[423141519,1779889832000,-500.0,6.067e-05,2]
[423141517,1779889832000,-500.0,6.067e-05,2]
[423141472,1779889832000,-802.87585299,5.771e-05,2]
[423141509,1779889832000,-500.0,6.067e-05,2]
[423141495,1779889832000,-452.11253199,6.067e-05,2]
[423141488,1779889832000,-500.0,6.067e-05,2]
[423141533,1779889832000,-420.0,6.607e-05,2]
[423141497,1779889832000,-428.79740613,6.067e-05,2]
[423141469,1779889832000,-605.52935036,5.771e-05,2]
[423141527,1779889832000,-240.89612444,6.16e-05,2]
[423141499,1779889832000,-500.0,6.067e-05,2]
[423141476,1779889832000,-5000.0,5.829e-05,2]
[423141507,1779889832000,-500.0,6.067e-05,2]
[423141505,1779889832000,-500.0,6.067e-05,2]
[423141503,1779889832000,-500.0,6.067e-05,2]
[423141480,1779889832000,-1200.0,5.946e-05,2]
[423141531,1779889832000,-151.0,6.527e-05,2]
[423141515,1779889832000,-500.0,6.067e-05,2]
[423141540,1779889832000,-300.0,6.932e-05,2]
[423141537,1779889832000,-300.0,6.932e-05,2]
[423141554,1779889832000,-600.0,7.441e-05,2]
[423141548,1779889832000,-300.0,6.932e-05,2]
[423141549,1779889832000,-300.0,6.932e-05,2]
[423141558,1779889832000,-319.9826953,7.994e-05,2]
[423141544,1779889832000,-300.0,6.932e-05,2]
[423141550,1779889832000,-300.0,6.932e-05,2]
[423141546,1779889832000,-300.0,6.932e-05,2]
[423141547,1779889832000,-300.0,6.932e-05,2]
[423141552,1779889832000,-587.0,7.267e-05,2]
[423141551,1779889832000,-151.0,7.007e-05,2]
[423141556,1779889832000,-220.2014283,7.708e-05,2]
[423141545,1779889832000,-300.0,6.932e-05,2]
[423141478,1779889832000,-5000.0,5.888e-05,2]
[423141484,1779889832000,-500.0,6.067e-05,2]
[423141541,1779889832000,-300.0,6.932e-05,2]
[423141542,1779889832000,-300.0,6.932e-05,2]
[423141493,1779889832000,-500.0,6.067e-05,2]
[423141535,1779889832000,-151.0,6.797e-05,2]
[423141525,1779889832000,-500.0,6.067e-05,2]
[423141539,1779889832000,-300.0,6.932e-05,2]
[423141538,1779889832000,-300.0,6.932e-05,2]
[423141543,1779889832000,-300.0,6.932e-05,2]
[423141474,1779889832000,-3591.59479665,5.771e-05,2]
[423141486,1779889832000,-500.0,6.067e-05,2]
[423141666,1779889838000,-505.10970556,8.493e-05,2]
[423141685,1779889838000,-500.0,8.767e-05,2]
[423141673,1779889838000,-500.0,8.493e-05,2]
[423141679,1779889838000,-500.0,8.764e-05,2]
[423141660,1779889838000,-465.8989259,8.219e-05,2]
[423141677,1779889838000,-500.0,8.493e-05,2]
[423141658,1779889838000,-500.0,8.219e-05,2]
[423141662,1779889838000,-6430.47744142,8.271e-05,2]
[423141664,1779889838000,-500.0,8.493e-05,2]
[423141650,1779889838000,-500.0,8.219e-05,2]
[423141687,1779889838000,-500.0,8.767e-05,2]
[423141668,1779889838000,-500.0,8.493e-05,2]
[423141675,1779889838000,-873.25,8.493e-05,2]
[423141617,1779889838000,-1380.95630866,5.713e-05,2]
[423141683,1779889838000,-500.0,8.767e-05,2]
[423141681,1779889838000,-500.0,8.767e-05,2]
[423141643,1779889838000,-284.25742684,8.16e-05,2]
[423141654,1779889838000,-500.0,8.219e-05,2]
[423141689,1779889838000,-873.25,8.767e-05,2]
[423141656,1779889838000,-873.25,8.219e-05,2]
[423141670,1779889838000,-500.0,8.493e-05,2]
[423141653,1779889838000,-500.0,8.219e-05,2]
[423141648,1779889838000,-500.0,8.219e-05,2]